[Event "Late-Titled-Tuesday-Blitz-March-05-2024"]
[Site "Chess.com"]
[Date "2024.03.05"]
[Round "8"]
[White "MusicCityMaster"]
[Black "Bryanl106"]
[Result "0-1"]
[WhiteElo "2511"]
[BlackElo "2654"]
[TimeControl "180+1"]
[EndTime "15:25:59 PST"]
[Termination "Bryanl106 won by checkmate"]

1. e4 {[%clk 0:03:00.9]} 1... e5 {[%clk 0:02:59.9]} 2. Nf3 {[%clk 0:03:00.5]}
2... Nc6 {[%clk 0:03:00.6]} 3. Bb5 {[%clk 0:03:00.3]} 3... a6 {[%clk 0:03:00.7]}
4. Ba4 {[%clk 0:03:00.4]} 4... Nf6 {[%clk 0:03:01.1]} 5. O-O {[%clk 0:02:58.6]}
5... Be7 {[%clk 0:03:01.4]} 6. Re1 {[%clk 0:02:54.9]} 6... b5 {[%clk 0:03:01.4]}
7. Bb3 {[%clk 0:02:54.4]} 7... d6 {[%clk 0:03:02]} 8. c3 {[%clk 0:02:49.6]} 8...
O-O {[%clk 0:03:01.5]} 9. h3 {[%clk 0:02:48.3]} 9... a5 {[%clk 0:03:00.9]} 10.
d4 {[%clk 0:02:47.1]} 10... Bd7 {[%clk 0:02:48.1]} 11. Nbd2 {[%clk 0:02:39.9]}
11... h6 {[%clk 0:02:46.4]} 12. Nf1 {[%clk 0:02:39.8]} 12... Re8 {[%clk
0:02:45.6]} 13. Ng3 {[%clk 0:02:21]} 13... Bf8 {[%clk 0:02:44.4]} 14. Bc2 {[%clk
0:01:48]} 14... a4 {[%clk 0:02:28.3]} 15. a3 {[%clk 0:01:45.8]} 15... Na5 {[%clk
0:02:25.7]} 16. Be3 {[%clk 0:01:43.1]} 16... Nc4 {[%clk 0:02:25.1]} 17. Rb1
{[%clk 0:01:39]} 17... Qc8 {[%clk 0:02:21.7]} 18. d5 {[%clk 0:01:22.8]} 18... c6
{[%clk 0:02:19.8]} 19. dxc6 {[%clk 0:01:11.9]} 19... Bxc6 {[%clk 0:02:18.8]} 20.
Bc1 {[%clk 0:01:02.5]} 20... Qb7 {[%clk 0:02:17.7]} 21. Nh4 {[%clk 0:00:53.6]}
21... Rad8 {[%clk 0:02:15.9]} 22. Qd3 {[%clk 0:00:48.2]} 22... d5 {[%clk
0:02:13.7]} 23. exd5 {[%clk 0:00:38.1]} 23... Bxd5 {[%clk 0:02:14.6]} 24. Ngf5
{[%clk 0:00:36.5]} 24... Bxg2 {[%clk 0:02:05.5]} 25. Qg3 {[%clk 0:00:36]} 25...
Be4 {[%clk 0:01:57.2]} 26. Bxe4 {[%clk 0:00:26]} 26... Nxe4 {[%clk 0:01:58.1]}
27. Qg2 {[%clk 0:00:21.4]} 27... Nc5 {[%clk 0:01:55.9]} 28. Nxh6+ {[%clk
0:00:19.6]} 28... Kh7 {[%clk 0:01:54.5]} 29. Qxb7 {[%clk 0:00:19.7]} 29... Nxb7
{[%clk 0:01:55]} 30. Nxf7 {[%clk 0:00:20]} 30... Rd7 {[%clk 0:01:52.7]} 31. Ng5+
{[%clk 0:00:20]} 31... Kg8 {[%clk 0:01:51.8]} 32. Ng6 {[%clk 0:00:16.8]} 32...
Bc5 {[%clk 0:01:49.6]} 33. Ne4 {[%clk 0:00:15.9]} 33... Ba7 {[%clk 0:01:47.6]}
34. Bg5 {[%clk 0:00:16]} 34... Nba5 {[%clk 0:01:46.7]} 35. Rbd1 {[%clk
0:00:15.4]} 35... Rf7 {[%clk 0:01:46.4]} 36. Re2 {[%clk 0:00:13.3]} 36... Nb3
{[%clk 0:01:46]} 37. Rd5 {[%clk 0:00:12.5]} 37... Rf5 {[%clk 0:01:30.7]} 38. h4
{[%clk 0:00:12.7]} 38... Kh7 {[%clk 0:01:28.9]} 39. Rxb5 {[%clk 0:00:12.6]}
39... Kxg6 {[%clk 0:01:27]} 40. Rb7 {[%clk 0:00:12.4]} 40... Bb8 {[%clk
0:01:22]} 41. h5+ {[%clk 0:00:12.7]} 41... Kxh5 {[%clk 0:01:19.9]} 42. Rxg7
{[%clk 0:00:12.8]} 42... Rf3 {[%clk 0:01:09.1]} 43. Kg2 {[%clk 0:00:11.6]} 43...
Nd6 {[%clk 0:00:59.9]} 44. Re1 {[%clk 0:00:12.1]} 44... Nxe4 {[%clk 0:00:58.6]}
45. Rh1+ {[%clk 0:00:12.4]} 45... Kg4 {[%clk 0:00:58.9]} 46. Rh4+ {[%clk
0:00:13.1]} 46... Kf5 {[%clk 0:00:59.1]} 47. Kxf3 {[%clk 0:00:13.1]} 47... Nxg5+
{[%clk 0:00:59.3]} 48. Kg2 {[%clk 0:00:13.1]} 48... Ne6 {[%clk 0:00:46.3]} 49.
Rb7 {[%clk 0:00:12.2]} 49... Nbc5 {[%clk 0:00:45.4]} 50. Rb5 {[%clk 0:00:11.6]}
50... Rg8+ {[%clk 0:00:45.2]} 51. Kf1 {[%clk 0:00:11.9]} 51... Bd6 {[%clk
0:00:41.5]} 52. Rb6 {[%clk 0:00:11.7]} 52... Be7 {[%clk 0:00:41.4]} 53. Rh5+
{[%clk 0:00:12]} 53... Rg5 {[%clk 0:00:40.5]} 54. Rxg5+ {[%clk 0:00:12.3]} 54...
Bxg5 {[%clk 0:00:41.1]} 55. Ke2 {[%clk 0:00:11.5]} 55... Bc1 {[%clk 0:00:39.8]}
56. Rb5 {[%clk 0:00:11]} 56... Nb3 {[%clk 0:00:38]} 57. Kd1 {[%clk 0:00:10.4]}
57... Bxb2 {[%clk 0:00:37.7]} 58. Kc2 {[%clk 0:00:11]} 58... Bxa3 {[%clk
0:00:37.7]} 59. Rb8 {[%clk 0:00:08.9]} 59... Bd6 {[%clk 0:00:37.5]} 60. Ra8
{[%clk 0:00:09.1]} 60... Nbc5 {[%clk 0:00:37]} 61. c4 {[%clk 0:00:09]} 61... e4
{[%clk 0:00:37.2]} 62. Kc3 {[%clk 0:00:09.5]} 62... Be5+ {[%clk 0:00:37.5]} 63.
Kb4 {[%clk 0:00:09.9]} 63... Kg4 {[%clk 0:00:37]} 64. Rg8+ {[%clk 0:00:05]}
64... Kf3 {[%clk 0:00:37.1]} 65. Rh8 {[%clk 0:00:04.1]} 65... Kxf2 {[%clk
0:00:37.2]} 66. Rh5 {[%clk 0:00:05]} 66... Bd4 {[%clk 0:00:36.8]} 67. Rf5+
{[%clk 0:00:05.4]} 67... Ke1 {[%clk 0:00:36.9]} 68. Rf1+ {[%clk 0:00:02.5]}
68... Kxf1 {[%clk 0:00:36]} 69. Kb5 {[%clk 0:00:03.2]} 69... e3 {[%clk
0:00:35.9]} 70. Kb4 {[%clk 0:00:03.7]} 70... e2 {[%clk 0:00:36.8]} 71. Ka3
{[%clk 0:00:04.3]} 71... e1=Q {[%clk 0:00:35.6]} 72. Ka2 {[%clk 0:00:05.2]}
72... Qa1# {[%clk 0:00:36.2]} 0-1

[Event "Late-Titled-Tuesday-Blitz-March-05-2024"]
[Site "Chess.com"]
[Date "2024.03.05"]
[Round "8"]
[White "Rodalquilar"]
[Black "yaguigor"]
[Result "1-0"]
[WhiteElo "2785"]
[BlackElo "2566"]
[TimeControl "180+1"]
[EndTime "15:26:09 PST"]
[Termination "Rodalquilar won by resignation"]

1. d4 {[%clk 0:03:00.9]} 1... d5 {[%clk 0:02:57.5]} 2. Nf3 {[%clk 0:03:01.3]}
2... Nf6 {[%clk 0:02:56.5]} 3. Bf4 {[%clk 0:03:01.6]} 3... c5 {[%clk 0:02:55.8]}
4. e3 {[%clk 0:03:02.1]} 4... Nc6 {[%clk 0:02:54.5]} 5. c3 {[%clk 0:03:02.6]}
5... Qb6 {[%clk 0:02:51.8]} 6. Qc2 {[%clk 0:03:02.8]} 6... Bf5 {[%clk 0:02:46]}
7. dxc5 {[%clk 0:03:02.5]} 7... Bxc2 {[%clk 0:02:39.8]} 8. cxb6 {[%clk
0:03:03.4]} 8... axb6 {[%clk 0:02:39.5]} 9. Na3 {[%clk 0:03:03.2]} 9... Rxa3
{[%clk 0:02:30.2]} 10. bxa3 {[%clk 0:03:04.1]} 10... e5 {[%clk 0:02:27.1]} 11.
Nxe5 {[%clk 0:03:03.1]} 11... Bxa3 {[%clk 0:02:27.7]} 12. Bb5 {[%clk 0:02:53.3]}
12... O-O {[%clk 0:02:22.7]} 13. f3 {[%clk 0:02:16]} 13... Bb2 {[%clk
0:02:20.7]} 14. Kd2 {[%clk 0:02:16.5]} 14... Bf5 {[%clk 0:02:12.9]} 15. Bxc6
{[%clk 0:01:58.4]} 15... Bxa1 {[%clk 0:02:00.5]} 16. Rxa1 {[%clk 0:01:49.5]}
16... bxc6 {[%clk 0:01:59.6]} 17. Nxc6 {[%clk 0:01:50]} 17... Bd7 {[%clk
0:01:53.8]} 18. Nb8 {[%clk 0:01:42.3]} 18... Ba4 {[%clk 0:01:50.5]} 19. Rb1
{[%clk 0:01:41.5]} 19... b5 {[%clk 0:01:49.8]} 20. Nc6 {[%clk 0:01:38.7]} 20...
Re8 {[%clk 0:01:44.8]} 21. g4 {[%clk 0:01:15.2]} 21... h6 {[%clk 0:01:43.6]} 22.
h4 {[%clk 0:01:14.8]} 22... Nd7 {[%clk 0:01:39.6]} 23. Nd4 {[%clk 0:01:02.3]}
23... Nb6 {[%clk 0:01:36.5]} 24. Nxb5 {[%clk 0:00:47.3]} 24... Nc4+ {[%clk
0:01:36.2]} 25. Kd3 {[%clk 0:00:47.8]} 25... Ne5+ {[%clk 0:01:12.5]} 26. Bxe5
{[%clk 0:00:46.6]} 26... Rxe5 {[%clk 0:01:13.3]} 27. Nd4 {[%clk 0:00:45.2]}
27... Re8 {[%clk 0:01:09]} 28. Rb4 {[%clk 0:00:43.7]} 28... Bd7 {[%clk
0:01:06.7]} 29. Rb7 {[%clk 0:00:43.5]} 29... Rd8 {[%clk 0:01:05.2]} 30. Ra7
{[%clk 0:00:43.9]} 30... Kf8 {[%clk 0:00:55]} 31. a4 {[%clk 0:00:44]} 31... Ke8
{[%clk 0:00:55.2]} 32. a5 {[%clk 0:00:44.4]} 32... Rb8 {[%clk 0:00:55.3]} 33. a6
{[%clk 0:00:38.1]} 33... Rb2 {[%clk 0:00:54.8]} 34. Rb7 {[%clk 0:00:36.6]} 34...
Ra2 {[%clk 0:00:54.1]} 35. a7 {[%clk 0:00:37.1]} 35... Ke7 {[%clk 0:00:53.6]}
36. Nf5+ {[%clk 0:00:34.4]} 36... Ke6 {[%clk 0:00:51.2]} 37. Nxg7+ {[%clk
0:00:34.6]} 37... Kd6 {[%clk 0:00:51.5]} 38. Rb6+ {[%clk 0:00:30.5]} 38... Kc5
{[%clk 0:00:49]} 39. Rxh6 {[%clk 0:00:30.4]} 39... Bb5+ {[%clk 0:00:47.3]} 40.
c4 {[%clk 0:00:28.1]} 40... Bxc4+ {[%clk 0:00:47.3]} 41. Kc3 {[%clk 0:00:28.7]}
41... Rxa7 {[%clk 0:00:45.9]} 42. Nf5 {[%clk 0:00:28.4]} 42... Ra3+ {[%clk
0:00:45.6]} 43. Kd2 {[%clk 0:00:28.6]} 43... Ra2+ {[%clk 0:00:45.3]} 44. Ke1
{[%clk 0:00:24.9]} 44... Bd3 {[%clk 0:00:42.2]} 45. Nd4 {[%clk 0:00:22.5]} 45...
Rh2 {[%clk 0:00:34]} 46. h5 {[%clk 0:00:22.1]} 46... Kb4 {[%clk 0:00:32.2]} 47.
Rc6 {[%clk 0:00:21.9]} 47... Bc4 {[%clk 0:00:31.4]} 48. h6 {[%clk 0:00:19.4]}
48... Kc3 {[%clk 0:00:30.5]} 49. Nf5 {[%clk 0:00:13.5]} 49... Kd3 {[%clk
0:00:30.6]} 50. Kf1 {[%clk 0:00:14.1]} 50... d4 {[%clk 0:00:19.6]} 51. exd4
{[%clk 0:00:11.3]} 51... Bd5 {[%clk 0:00:18.4]} 52. Kg1 {[%clk 0:00:08.4]} 52...
Rh3 {[%clk 0:00:16.1]} 53. Ra6 {[%clk 0:00:05.9]} 53... Bxf3 {[%clk 0:00:14.1]}
54. Ra3+ {[%clk 0:00:06.1]} 54... Ke4 {[%clk 0:00:13.5]} 55. Nd6+ {[%clk
0:00:05.2]} 55... Kf4 {[%clk 0:00:13.4]} 56. Nxf7 {[%clk 0:00:04.2]} 56... Kg3
{[%clk 0:00:11.8]} 57. Rxf3+ {[%clk 0:00:04.1]} 57... Kxf3 {[%clk 0:00:12]} 58.
Ng5+ {[%clk 0:00:04.7]} 58... Kxg4 {[%clk 0:00:12.4]} 59. Nxh3 {[%clk
0:00:05.2]} 1-0

[Event "Late-Titled-Tuesday-Blitz-March-05-2024"]
[Site "Chess.com"]
[Date "2024.03.05"]
[Round "8"]
[White "Sokoloco"]
[Black "Elsa167"]
[Result "1-0"]
[WhiteElo "2795"]
[BlackElo "2887"]
[TimeControl "180+1"]
[EndTime "15:26:10 PST"]
[Termination "Sokoloco won on time"]

1. b3 {[%clk 0:03:00.9]} 1... a5 {[%clk 0:02:56.2]} 2. Bb2 {[%clk 0:03:01.1]}
2... a4 {[%clk 0:02:56.8]} 3. b4 {[%clk 0:03:01.8]} 3... e5 {[%clk 0:02:52]} 4.
a3 {[%clk 0:03:02.2]} 4... d6 {[%clk 0:02:46.9]} 5. g3 {[%clk 0:02:53.1]} 5...
g6 {[%clk 0:02:45.1]} 6. Bg2 {[%clk 0:02:52.2]} 6... Bg7 {[%clk 0:02:45.6]} 7.
c4 {[%clk 0:02:50.4]} 7... f5 {[%clk 0:02:44.5]} 8. e3 {[%clk 0:02:45.2]} 8...
Nf6 {[%clk 0:02:29.9]} 9. Ne2 {[%clk 0:02:45.2]} 9... O-O {[%clk 0:02:27.9]} 10.
O-O {[%clk 0:02:45.8]} 10... Qe8 {[%clk 0:02:16.9]} 11. Nbc3 {[%clk 0:02:45.5]}
11... e4 {[%clk 0:02:08.7]} 12. d3 {[%clk 0:02:45.1]} 12... exd3 {[%clk
0:02:08.9]} 13. Qxd3 {[%clk 0:02:44.4]} 13... Nc6 {[%clk 0:02:08.7]} 14. Nb5
{[%clk 0:02:35.1]} 14... Qf7 {[%clk 0:02:02.7]} 15. Nf4 {[%clk 0:02:34.7]} 15...
Ne5 {[%clk 0:01:50.1]} 16. Qc2 {[%clk 0:02:35]} 16... Kh8 {[%clk 0:01:34.5]} 17.
Nd5 {[%clk 0:02:30.1]} 17... Ne8 {[%clk 0:01:27.6]} 18. f4 {[%clk 0:02:02.5]}
18... Ng4 {[%clk 0:01:27.7]} 19. h3 {[%clk 0:01:57.2]} 19... Ngf6 {[%clk
0:01:25.8]} 20. Rad1 {[%clk 0:01:51.1]} 20... Be6 {[%clk 0:01:22.2]} 21. Nxf6
{[%clk 0:01:48.1]} 21... Bxf6 {[%clk 0:01:22.7]} 22. Bxb7 {[%clk 0:01:48.3]}
22... Rb8 {[%clk 0:01:16.4]} 23. Bc6 {[%clk 0:01:42.2]} 23... Bxb2 {[%clk
0:00:45.4]} 24. Qxb2+ {[%clk 0:01:29.1]} 24... Ng7 {[%clk 0:00:37.2]} 25. Bd5
{[%clk 0:01:21.1]} 25... Bxd5 {[%clk 0:00:34.4]} 26. Rxd5 {[%clk 0:01:22]} 26...
Rfe8 {[%clk 0:00:32.9]} 27. Qc3 {[%clk 0:01:13.2]} 27... Re7 {[%clk 0:00:28.3]}
28. Rd3 {[%clk 0:01:09.7]} 28... Rbe8 {[%clk 0:00:27.9]} 29. c5 {[%clk
0:01:06.7]} 29... d5 {[%clk 0:00:24.6]} 30. c6 {[%clk 0:01:04.7]} 30... Kg8
{[%clk 0:00:24.5]} 31. Qc5 {[%clk 0:01:00.4]} 31... Nh5 {[%clk 0:00:21.5]} 32.
Kf2 {[%clk 0:00:45.3]} 32... Nf6 {[%clk 0:00:21.1]} 33. Nc3 {[%clk 0:00:46]}
33... d4 {[%clk 0:00:15.7]} 34. Qxd4 {[%clk 0:00:43.1]} 34... Qb3 {[%clk
0:00:15.6]} 35. Nd5 {[%clk 0:00:30.1]} 35... Nxd5 {[%clk 0:00:11]} 36. Qxd5+
{[%clk 0:00:30]} 36... Qxd5 {[%clk 0:00:11.8]} 37. Rxd5 {[%clk 0:00:30.9]} 37...
Rxe3 {[%clk 0:00:12.4]} 38. Rd7 {[%clk 0:00:18.6]} 38... Rxa3 {[%clk 0:00:06.4]}
39. Re1 {[%clk 0:00:11]} 39... Ra2+ {[%clk 0:00:05.6]} 40. Kf1 {[%clk
0:00:11.6]} 40... Rxe1+ {[%clk 0:00:05.4]} 41. Kxe1 {[%clk 0:00:12.5]} 41... a3
{[%clk 0:00:05.8]} 42. Rxc7 {[%clk 0:00:13.1]} 42... Rc2 {[%clk 0:00:06.5]} 43.
Ra7 {[%clk 0:00:12.2]} 43... Rxc6 {[%clk 0:00:02.3]} 44. Rxa3 {[%clk 0:00:12.2]}
44... Rc2 {[%clk 0:00:02.1]} 45. Rb3 {[%clk 0:00:10.6]} 45... Kf7 {[%clk
0:00:02.7]} 46. b5 {[%clk 0:00:11.3]} 46... Ke7 {[%clk 0:00:03.3]} 47. b6 {[%clk
0:00:12]} 47... Rc8 {[%clk 0:00:03.6]} 48. Ke2 {[%clk 0:00:11.2]} 48... Kd6
{[%clk 0:00:04.1]} 49. Kd3 {[%clk 0:00:09.7]} 49... Rd8 {[%clk 0:00:03.1]} 50.
Kc4 {[%clk 0:00:06.2]} 50... Kc6 {[%clk 0:00:03.4]} 51. b7 {[%clk 0:00:06.8]}
51... Rb8 {[%clk 0:00:01.5]} 52. Kd4 {[%clk 0:00:07.1]} 52... Kd6 {[%clk
0:00:02.1]} 53. Rb6+ {[%clk 0:00:06.7]} 53... Kc7 {[%clk 0:00:02.4]} 54. Kc5
{[%clk 0:00:07.4]} 54... h6 {[%clk 0:00:01.6]} 55. h4 {[%clk 0:00:07.5]} 55...
g5 {[%clk 0:00:01.9]} 56. Rxh6 {[%clk 0:00:06.5]} 56... gxf4 {[%clk 0:00:02]}
57. gxf4 {[%clk 0:00:07.1]} 57... Kxb7 {[%clk 0:00:02.5]} 58. Rb6+ {[%clk
0:00:07.3]} 1-0

[Event "Late-Titled-Tuesday-Blitz-March-05-2024"]
[Site "Chess.com"]
[Date "2024.03.05"]
[Round "8"]
[White "JaackCamel"]
[Black "cristiano78"]
[Result "0-1"]
[WhiteElo "2190"]
[BlackElo "2283"]
[TimeControl "180+1"]
[EndTime "15:26:10 PST"]
[Termination "cristiano78 won by resignation"]

1. d4 {[%clk 0:03:00.9]} 1... Nf6 {[%clk 0:02:58.4]} 2. c4 {[%clk 0:03:00.2]}
2... g6 {[%clk 0:02:58.2]} 3. Nc3 {[%clk 0:02:57.8]} 3... Bg7 {[%clk 0:02:58.1]}
4. e4 {[%clk 0:02:57.1]} 4... d6 {[%clk 0:02:58.3]} 5. Nf3 {[%clk 0:02:56.7]}
5... O-O {[%clk 0:02:57.4]} 6. Be2 {[%clk 0:02:56.8]} 6... e5 {[%clk 0:02:57.5]}
7. Be3 {[%clk 0:02:56.1]} 7... Ng4 {[%clk 0:02:56.8]} 8. Bg5 {[%clk 0:02:55.5]}
8... f6 {[%clk 0:02:56.5]} 9. Bh4 {[%clk 0:02:54.8]} 9... Nc6 {[%clk 0:02:50.1]}
10. d5 {[%clk 0:02:53.8]} 10... Ne7 {[%clk 0:02:49.4]} 11. Nd2 {[%clk
0:02:50.5]} 11... Nh6 {[%clk 0:02:48.7]} 12. f3 {[%clk 0:02:48.6]} 12... f5
{[%clk 0:02:47.3]} 13. b4 {[%clk 0:02:43.5]} 13... Nf7 {[%clk 0:02:38.4]} 14. c5
{[%clk 0:02:37.9]} 14... g5 {[%clk 0:02:32.6]} 15. Bf2 {[%clk 0:02:37.2]} 15...
Ng6 {[%clk 0:02:32.5]} 16. Nc4 {[%clk 0:02:34.9]} 16... a6 {[%clk 0:02:31.8]}
17. cxd6 {[%clk 0:02:33.6]} 17... Nxd6 {[%clk 0:02:30]} 18. Nxd6 {[%clk
0:02:26.9]} 18... cxd6 {[%clk 0:02:29.8]} 19. Na4 {[%clk 0:02:19.5]} 19... Nf4
{[%clk 0:02:28.2]} 20. Rg1 {[%clk 0:02:12.9]} 20... fxe4 {[%clk 0:02:25.9]} 21.
fxe4 {[%clk 0:02:09]} 21... Qf6 {[%clk 0:02:13.9]} 22. Be3 {[%clk 0:01:45.7]}
22... Qg6 {[%clk 0:01:57.1]} 23. Qc2 {[%clk 0:01:18.1]} 23... Nxe2 {[%clk
0:01:44.3]} 24. Kxe2 {[%clk 0:01:17.4]} 24... Bg4+ {[%clk 0:01:43.6]} 25. Kd2
{[%clk 0:01:13.9]} 25... Rac8 {[%clk 0:01:42.8]} 26. Qd3 {[%clk 0:01:08.9]}
26... Rc7 {[%clk 0:01:32.9]} 27. Rac1 {[%clk 0:00:58]} 27... Rcf7 {[%clk
0:01:27]} 28. Nc3 {[%clk 0:00:46.5]} 28... h5 {[%clk 0:01:16.8]} 29. Rgf1 {[%clk
0:00:44.8]} 29... Bd7 {[%clk 0:01:10.5]} 30. Rxf7 {[%clk 0:00:42.5]} 30... Rxf7
{[%clk 0:01:10.4]} 31. Rf1 {[%clk 0:00:39.3]} 31... g4 {[%clk 0:01:07.7]} 32.
Rxf7 {[%clk 0:00:38]} 32... Kxf7 {[%clk 0:01:04.2]} 33. a4 {[%clk 0:00:37.1]}
33... Bh6 {[%clk 0:01:03.2]} 34. b5 {[%clk 0:00:33.8]} 34... Bxe3+ {[%clk
0:01:02.2]} 35. Qxe3 {[%clk 0:00:33.5]} 35... axb5 {[%clk 0:01:01.8]} 36. Nxb5
{[%clk 0:00:25.8]} 36... Bxb5 {[%clk 0:01:01]} 37. axb5 {[%clk 0:00:25.9]} 37...
Qf6 {[%clk 0:00:57.8]} 38. Kd3 {[%clk 0:00:23.5]} 38... Qf1+ {[%clk 0:00:50.7]}
39. Qe2 {[%clk 0:00:19.3]} 39... Qb1+ {[%clk 0:00:43.4]} 40. Kc3 {[%clk
0:00:19.4]} 40... Qa1+ {[%clk 0:00:39.4]} 41. Kb4 {[%clk 0:00:19]} 41... Qd4+
{[%clk 0:00:33.9]} 42. Kb3 {[%clk 0:00:17.8]} 42... b6 {[%clk 0:00:30.1]} 43.
Kc2 {[%clk 0:00:17.2]} 43... Kg6 {[%clk 0:00:29.7]} 44. Kb3 {[%clk 0:00:16.9]}
44... Kg5 {[%clk 0:00:28.6]} 45. g3 {[%clk 0:00:17]} 45... h4 {[%clk 0:00:27.1]}
46. Kc2 {[%clk 0:00:16.5]} 46... hxg3 {[%clk 0:00:26.7]} 47. hxg3 {[%clk
0:00:16.6]} 47... Qc5+ {[%clk 0:00:26.1]} 48. Kb3 {[%clk 0:00:16]} 48... Kh5
{[%clk 0:00:23]} 49. Kb2 {[%clk 0:00:13.4]} 49... Qb4+ {[%clk 0:00:21.7]} 50.
Kc2 {[%clk 0:00:13]} 50... Qa4+ {[%clk 0:00:21.1]} 51. Kc3 {[%clk 0:00:12.6]}
51... Qa3+ {[%clk 0:00:21]} 52. Kc4 {[%clk 0:00:10.9]} 52... Qxg3 {[%clk
0:00:19]} 53. Kb4 {[%clk 0:00:09.5]} 53... Qf3 {[%clk 0:00:18.8]} 54. Qh2+
{[%clk 0:00:09.5]} 54... Kg5 {[%clk 0:00:19]} 55. Qh8 {[%clk 0:00:09.1]} 55...
Qxe4+ {[%clk 0:00:19]} 56. Kb3 {[%clk 0:00:09.6]} 56... Qxd5+ {[%clk 0:00:19.1]}
57. Kc2 {[%clk 0:00:09.8]} 57... Qxb5 {[%clk 0:00:18.9]} 58. Qd8+ {[%clk
0:00:08.5]} 58... Kf4 {[%clk 0:00:18.5]} 59. Qxd6 {[%clk 0:00:08.7]} 59... Qc5+
{[%clk 0:00:17.7]} 0-1

[Event "Late-Titled-Tuesday-Blitz-March-05-2024"]
[Site "Chess.com"]
[Date "2024.03.05"]
[Round "8"]
[White "Njal28"]
[Black "AlexeiShirov"]
[Result "1/2-1/2"]
[WhiteElo "3005"]
[BlackElo "2874"]
[TimeControl "180+1"]
[EndTime "15:26:13 PST"]
[Termination "Game drawn - insufficient material"]

1. d4 {[%clk 0:03:00.9]} 1... d5 {[%clk 0:03:00.1]} 2. c4 {[%clk 0:03:00.4]}
2... c6 {[%clk 0:03:00.4]} 3. Nf3 {[%clk 0:03:00.7]} 3... Nf6 {[%clk 0:03:00.3]}
4. Nc3 {[%clk 0:03:00.6]} 4... e6 {[%clk 0:03:00.3]} 5. g3 {[%clk 0:03:01.3]}
5... dxc4 {[%clk 0:02:59.8]} 6. Bg2 {[%clk 0:03:01.3]} 6... b5 {[%clk
0:02:59.5]} 7. Ne5 {[%clk 0:03:01.8]} 7... a6 {[%clk 0:02:59.1]} 8. O-O {[%clk
0:03:01.6]} 8... Bb7 {[%clk 0:02:59.2]} 9. b3 {[%clk 0:03:02.1]} 9... b4 {[%clk
0:02:58.9]} 10. Ne4 {[%clk 0:03:02.5]} 10... Nxe4 {[%clk 0:02:56.3]} 11. Bxe4
{[%clk 0:03:03.4]} 11... c3 {[%clk 0:02:55.3]} 12. a3 {[%clk 0:03:03.9]} 12...
a5 {[%clk 0:02:55.2]} 13. Qd3 {[%clk 0:03:04.4]} 13... f5 {[%clk 0:02:01.7]} 14.
Bf3 {[%clk 0:03:03.6]} 14... Be7 {[%clk 0:01:57.2]} 15. axb4 {[%clk 0:02:59.5]}
15... axb4 {[%clk 0:01:55.8]} 16. Rxa8 {[%clk 0:03:00.4]} 16... Bxa8 {[%clk
0:01:54.8]} 17. Qc4 {[%clk 0:03:01.3]} 17... Qc8 {[%clk 0:01:41.7]} 18. Bf4
{[%clk 0:02:59]} 18... Bb7 {[%clk 0:01:36.5]} 19. Ra1 {[%clk 0:02:58.3]} 19...
O-O {[%clk 0:01:23.7]} 20. e4 {[%clk 0:01:56.8]} 20... c5 {[%clk 0:00:35.9]} 21.
dxc5 {[%clk 0:01:21.5]} 21... fxe4 {[%clk 0:00:30.4]} 22. Bxe4 {[%clk
0:01:16.1]} 22... Bxe4 {[%clk 0:00:30]} 23. Qxe4 {[%clk 0:01:17]} 23... Qxc5
{[%clk 0:00:30.1]} 24. Rd1 {[%clk 0:00:47.7]} 24... Rc8 {[%clk 0:00:26.6]} 25.
Nd7 {[%clk 0:00:45.1]} 25... Qc6 {[%clk 0:00:22.6]} 26. Qxc6 {[%clk 0:00:29.9]}
26... Nxc6 {[%clk 0:00:22.6]} 27. Nb6 {[%clk 0:00:29.1]} 27... Rd8 {[%clk
0:00:23.1]} 28. Re1 {[%clk 0:00:29.1]} 28... Nd4 {[%clk 0:00:23.1]} 29. Kg2
{[%clk 0:00:25.6]} 29... c2 {[%clk 0:00:23.2]} 30. Rc1 {[%clk 0:00:21.5]} 30...
Bc5 {[%clk 0:00:20.7]} 31. Nc4 {[%clk 0:00:18.8]} 31... Ra8 {[%clk 0:00:20.5]}
32. Be5 {[%clk 0:00:13.1]} 32... Ra2 {[%clk 0:00:20.8]} 33. Ne3 {[%clk 0:00:13]}
33... Nxb3 {[%clk 0:00:19]} 34. Rxc2 {[%clk 0:00:13.5]} 34... Rxc2 {[%clk
0:00:18.9]} 35. Nxc2 {[%clk 0:00:14.4]} 35... Na5 {[%clk 0:00:19.3]} 36. Ne1
{[%clk 0:00:10.4]} 36... b3 {[%clk 0:00:19.1]} 37. Nd3 {[%clk 0:00:11.3]} 37...
Ba3 {[%clk 0:00:19.3]} 38. Bb2 {[%clk 0:00:08.4]} 38... Nc4 {[%clk 0:00:19.1]}
39. Bxa3 {[%clk 0:00:08]} 39... Nxa3 {[%clk 0:00:19.4]} 40. Nb2 {[%clk
0:00:07.2]} 40... Kf7 {[%clk 0:00:19.8]} 41. Kf3 {[%clk 0:00:07.9]} 41... Ke7
{[%clk 0:00:20.2]} 42. Ke4 {[%clk 0:00:08.7]} 42... Kd6 {[%clk 0:00:20.6]} 43.
Kd4 {[%clk 0:00:09.5]} 43... Nb5+ {[%clk 0:00:18.3]} 44. Kc4 {[%clk 0:00:10]}
44... Kc6 {[%clk 0:00:18.5]} 45. Kxb3 {[%clk 0:00:10.5]} 45... Kd5 {[%clk
0:00:18.8]} 46. Kc2 {[%clk 0:00:08.1]} 46... Ke4 {[%clk 0:00:19]} 47. Kd2 {[%clk
0:00:05.5]} 47... Kf3 {[%clk 0:00:18.8]} 48. Ke1 {[%clk 0:00:06.1]} 48... Kg2
{[%clk 0:00:18.6]} 49. h4 {[%clk 0:00:06.7]} 49... Nd4 {[%clk 0:00:18.6]} 50.
Nd3 {[%clk 0:00:07.2]} 50... Nf3+ {[%clk 0:00:17.4]} 51. Ke2 {[%clk 0:00:07.5]}
51... e5 {[%clk 0:00:16.3]} 52. Ke3 {[%clk 0:00:07.4]} 52... h5 {[%clk
0:00:15.2]} 53. Ke4 {[%clk 0:00:06.5]} 53... g5 {[%clk 0:00:15]} 54. hxg5 {[%clk
0:00:06.2]} 54... Nxg5+ {[%clk 0:00:15.2]} 55. Kxe5 {[%clk 0:00:06.8]} 55... Nh3
{[%clk 0:00:15.5]} 56. f4 {[%clk 0:00:03.9]} 56... Kxg3 {[%clk 0:00:15.1]} 57.
f5 {[%clk 0:00:04.5]} 57... h4 {[%clk 0:00:14.8]} 58. f6 {[%clk 0:00:04.8]}
58... Ng5 {[%clk 0:00:15]} 59. Kf5 {[%clk 0:00:05.5]} 59... Nf7 {[%clk 0:00:15]}
60. Ne5 {[%clk 0:00:03.9]} 60... Nxe5 {[%clk 0:00:14.1]} 61. Kxe5 {[%clk
0:00:04.4]} 61... h3 {[%clk 0:00:14.5]} 62. f7 {[%clk 0:00:05.1]} 62... h2
{[%clk 0:00:14.9]} 63. f8=Q {[%clk 0:00:06]} 63... h1=Q {[%clk 0:00:15.2]} 64.
Qf4+ {[%clk 0:00:06.9]} 64... Kg2 {[%clk 0:00:15.2]} 65. Qe4+ {[%clk 0:00:07.4]}
65... Kg1 {[%clk 0:00:15.5]} 66. Qe1+ {[%clk 0:00:08]} 66... Kg2 {[%clk
0:00:15.8]} 67. Qe2+ {[%clk 0:00:08.6]} 67... Kg1 {[%clk 0:00:16.2]} 68. Kf4
{[%clk 0:00:08.8]} 68... Qh2+ {[%clk 0:00:15.7]} 69. Kf3 {[%clk 0:00:09.4]}
69... Qxe2+ {[%clk 0:00:15.2]} 70. Kxe2 {[%clk 0:00:10.3]} 1/2-1/2